fUSD/lending_fUSD_20240421
["ID","MTS","AMOUNT","RATE_DAILY","PERIOD"]
[323133581,1713703836850,-1364.27,0.00016438,2]
[323133582,1713703836859,-665.77,0.00016438,2]
[323133583,1713703836868,-500.0,0.00016438,2]
[323133584,1713703836877,-500.0,0.00016438,2]
[323133585,1713703836887,-500.0,0.00016438,2]
[323133586,1713703836896,-500.0,0.00016438,2]
[323133587,1713703836905,-500.0,0.00016438,2]
[323133588,1713703836914,-868.35,0.00016438,2]
[323133589,1713703836923,-500.0,0.00016438,2]
[323133590,1713703836933,-817.11,0.00016438,2]
[323133591,1713703836942,-568.52,0.00016438,2]
[323133592,1713703836951,-601.46,0.00016438,2]
[323133593,1713703836960,-1398.98,0.00016438,2]
[323133594,1713703836970,-1865.99,0.00016438,2]
[323133595,1713703836980,-500.0,0.00016438,2]
[323133596,1713703836989,-530.16,0.00016438,2]
[323133597,1713703836998,-500.0,0.00016438,2]
[323133598,1713703837008,-2047.34,0.00016438,2]
[323133599,1713703837019,-793.89,0.00016438,2]
[323133600,1713703837030,-500.0,0.00016438,2]
[323133601,1713703837040,-500.0,0.00016438,2]
[323133602,1713703837050,-500.0,0.00016438,2]
[323133603,1713703837060,-500.0,0.00016438,2]
[323133604,1713703837069,-1170.77,0.00016438,2]
[323133605,1713703837078,-575.02,0.00016438,2]
[323133606,1713703837087,-1593.43,0.00016438,2]
[323133607,1713703837097,-595.22,0.00016438,2]
[323133608,1713703837107,-604.06,0.00016438,2]
[323133609,1713703837116,-702.98,0.00016438,2]
[323133610,1713703837125,-169.24281867,0.00016438,2]
[323133611,1713703837135,-500.0,0.00016438,2]
[323133612,1713703837144,-500.0,0.00016438,2]
[323133613,1713703837153,-2060.1,0.00016438,2]
[323133614,1713703837162,-500.0,0.00016438,2]
[323133615,1713703837171,-500.0,0.00016438,2]
[323133616,1713703837180,-926.58,0.00016438,2]
[323133617,1713703837189,-2018.56,0.00016438,2]
[323133618,1713703837199,-873.45,0.00016438,2]
[323133619,1713703837208,-607.23,0.00016438,2]
[323133620,1713703837218,-500.0,0.00016438,2]
[323133621,1713703837227,-500.0,0.00016438,2]
[323133622,1713703837236,-1503.38,0.00016438,2]
[323133623,1713703837245,-847.45,0.00016438,2]
[323133624,1713703837254,-500.0,0.00016438,2]
[323133625,1713703837263,-500.0,0.00016438,2]
[323133626,1713703837273,-760.18,0.00016438,2]
[323133627,1713703837282,-1239.54,0.00016438,2]
[323133628,1713703837292,-1006.77,0.00016438,2]
[323133629,1713703837301,-1850.19,0.00016438,2]
[323133630,1713703837311,-1602.29,0.00016438,2]
[323133631,1713703837320,-715.92,0.00016438,2]
[323133632,1713703837329,-780.11,0.00016438,2]
[323133633,1713703837338,-991.79,0.00016438,2]
[323133634,1713703837347,-500.0,0.00016438,2]
[323133635,1713703837357,-670.99,0.00016438,2]
[323133636,1713703837366,-500.0,0.00016438,2]
[323133637,1713703837375,-500.0,0.00016438,2]
[323133638,1713703837384,-1188.1,0.00016438,2]
[323133639,1713703837393,-500.0,0.00016438,2]
[323133640,1713703837402,-500.0,0.00016438,2]
[323133641,1713703837411,-646.16,0.00016438,2]
[323133642,1713703837421,-1590.79,0.00016438,2]
[323133645,1713703837592,-715.59,0.00016438,2]
[323133646,1713703837602,-958.53,0.00016438,2]
[323133647,1713703837611,-554.32,0.00016438,2]
[323133648,1713703837622,-500.0,0.00016438,2]
[323133649,1713703837631,-709.68,0.00016438,2]
[323133650,1713703837641,-1289.35,0.00016438,2]
[323133651,1713703837651,-561.05,0.00016438,2]
[323133652,1713703837661,-500.0,0.00016438,2]
[323133653,1713703837670,-797.41,0.00016438,2]
[323133654,1713703837679,-500.0,0.00016438,2]
[323133655,1713703837688,-781.73,0.00016438,2]
[323133656,1713703837697,-500.0,0.00016438,2]
[323133657,1713703837706,-2874.38,0.00016438,2]
[323133658,1713703837715,-500.0,0.00016438,2]
[323133659,1713703837724,-500.0,0.00016438,2]
[323133660,1713703837733,-2659.55,0.00016438,2]
[323133661,1713703837742,-500.0,0.00016438,2]
[323133662,1713703837751,-500.0,0.00016438,2]
[323133663,1713703837759,-750.38,0.00016438,2]
[323133664,1713703837769,-945.29,0.00016438,2]
[323133665,1713703837778,-500.0,0.00016438,2]
[323133666,1713703837787,-1789.82,0.00016438,2]
[323133667,1713703837796,-848.01,0.00016438,2]
[323133668,1713703837805,-500.0,0.00016438,2]
[323133669,1713703837814,-1597.32,0.00016438,2]
[323133670,1713703837822,-2231.0,0.00016438,2]
[323133671,1713703837832,-500.0,0.00016438,2]
[323133672,1713703837840,-503.03,0.00016438,2]
[323133673,1713703837849,-1727.37,0.00016438,2]
[323133674,1713703837858,-150.940564,0.00016438,2]
[323133675,1713703837867,-1000.0,0.000165,2]
[323133676,1713703837876,-150.0,0.000165,2]
[323133677,1713703837885,-150.0,0.00016532,2]
[323133678,1713703837894,-1000.0,0.000166,2]
[323133679,1713703837903,-250.0,0.000166,2]
[323133680,1713703837912,-250.0,0.000166,2]
[323133681,1713703837922,-180.46668736,0.00016612,2]
[323133682,1713703837931,-150.0,0.00016653,2]
[323133683,1713703837941,-150.0,0.0001666,2]
[323133684,1713703837951,-150.0,0.00016661,2]
[323133685,1713703837960,-150.0,0.00016664,2]
[323133686,1713703837970,-1000.0,0.000167,2]
[323133687,1713703837979,-1123.55965261,0.0001671,2]
[323133688,1713703837989,-719.58318799,0.00016711,2]
[323133689,1713703837998,-1070.54,0.00016711,2]
[323133690,1713703838007,-500.0,0.00016711,2]
[323133691,1713703838017,-300.47084821,0.00016711,2]
[323133692,1713703838028,-1369.11,0.00016711,2]
[323133693,1713703838038,-572.33,0.00016712,2]
[323133694,1713703838047,-630.34,0.00016712,2]
[323133695,1713703838057,-681.42,0.00016712,2]
[323133696,1713703838068,-513.27,0.00016712,2]
[323133697,1713703838077,-500.0,0.00016712,2]
[323133698,1713703838086,-606.55,0.00016712,2]
[323133699,1713703838095,-500.0,0.00016712,2]
[323133700,1713703838105,-794.99,0.00016712,2]
[323133701,1713703838114,-500.0,0.00016712,2]
[323133702,1713703838123,-667.15,0.00016712,2]
[323133703,1713703838132,-731.28,0.00016712,2]
[323133704,1713703838142,-500.0,0.00016712,2]
[323133705,1713703838151,-617.43,0.00016712,2]
[323133706,1713703838160,-797.28,0.00016712,2]
[323133707,1713703838171,-870.35,0.00016712,2]
[323133708,1713703838181,-657.43,0.00016712,2]
[323133709,1713703838190,-682.55,0.00016712,2]
[323133710,1713703838199,-500.0,0.00016712,2]
[323133711,1713703838209,-500.0,0.00016712,2]
[323133712,1713703838219,-500.0,0.00016712,2]
[323133713,1713703838228,-500.0,0.00016712,2]
[323133714,1713703838238,-1076.85,0.00016712,2]
[323133715,1713703838247,-636.47,0.00016712,2]
[323133716,1713703838256,-500.0,0.00016712,2]
[323133718,1713703838266,-564.89,0.00016712,2]
[323133720,1713703838274,-500.0,0.00016712,2]
[323133722,1713703838284,-900.43,0.00016712,2]
[323133724,1713703838294,-500.0,0.00016712,2]
[323133726,1713703838303,-500.0,0.00016712,2]
[323133728,1713703838312,-818.54,0.00016712,2]
[323133730,1713703838321,-877.26,0.00016712,2]
[323133732,1713703838331,-500.0,0.00016712,2]
[323133734,1713703838340,-151.0,0.00016712,2]
[323133736,1713703838349,-1305.63,0.00016712,2]
[323133738,1713703838358,-649.52,0.00016712,2]
[323133740,1713703838367,-500.0,0.00016712,2]
[323133742,1713703838376,-500.0,0.00016712,2]
[323133744,1713703838385,-500.0,0.00016712,2]
[323133746,1713703838394,-986.71,0.00016712,2]
[323133748,1713703838403,-815.01,0.00016712,2]
[323133750,1713703838412,-1222.11,0.00016712,2]
[323133752,1713703838421,-500.0,0.00016712,2]
[323133753,1713703838431,-700.25,0.00016712,2]
[323133755,1713703838440,-1388.09,0.00016712,2]
[323133758,1713703838450,-537.33,0.00016712,2]
[323133760,1713703838459,-701.07,0.00016712,2]
[323133762,1713703838468,-391.92606149,0.00016712,2]
[323133764,1713703838477,-500.0,0.00016712,2]
[323133766,1713703838486,-875.52,0.00016712,2]
[323133768,1713703838495,-500.0,0.00016712,2]
[323133770,1713703838504,-500.0,0.00016712,2]
[323133772,1713703838513,-500.0,0.00016712,2]
[323133773,1713703838522,-966.81,0.00016712,2]
[323133776,1713703838532,-500.0,0.00016712,2]
[323133778,1713703838541,-500.0,0.00016712,2]
[323133780,1713703838551,-1112.61,0.00016712,2]
[323133782,1713703838560,-500.0,0.00016712,2]
[323133783,1713703838569,-787.21,0.00016712,2]
[323133784,1713703838579,-500.0,0.00016712,2]
[323133785,1713703838589,-920.72,0.00016712,2]
[323133786,1713703838598,-500.0,0.00016712,2]
[323133787,1713703838607,-500.0,0.00016712,2]
[323133788,1713703838616,-948.74,0.00016712,2]
[323133789,1713703838625,-500.0,0.00016712,2]
[323133790,1713703838635,-513.32,0.00016712,2]
[323133791,1713703838644,-702.95,0.00016712,2]
[323133792,1713703838653,-2016.61,0.00016712,2]
[323133793,1713703838664,-500.0,0.00016712,2]
[323133794,1713703838673,-500.0,0.00016712,2]
[323133795,1713703838682,-500.0,0.00016712,2]
[323133796,1713703838691,-1035.72,0.00016712,2]
[323133797,1713703838700,-352.9618682,0.00016712,2]
[323133798,1713703838709,-500.0,0.00016712,2]
[323133799,1713703838718,-798.22,0.00016712,2]
[323133800,1713703838727,-500.0,0.00016712,2]
[323133801,1713703838736,-1151.14,0.00016712,2]
[323133802,1713703838745,-500.0,0.00016712,2]
[323133803,1713703838753,-891.59,0.00016712,2]
[323133804,1713703838763,-1881.96,0.00016712,2]
[323133805,1713703838772,-1284.68,0.00016712,2]
[323133806,1713703838781,-500.0,0.00016712,2]
[323133807,1713703838790,-746.21,0.00016712,2]
[323133808,1713703838802,-500.0,0.00016712,2]
[323133809,1713703838812,-528.29,0.00016712,2]
[323133810,1713703838821,-500.0,0.00016712,2]
[323133811,1713703838830,-501.9087277,0.00016712,2]
[323133812,1713703838839,-500.0,0.00016712,2]
[323133813,1713703838849,-1005.87,0.00016712,2]
[323133814,1713703838858,-1895.51,0.00016712,2]
[323133815,1713703838867,-952.01,0.00016712,2]
[323133816,1713703838876,-500.0,0.00016712,2]
[323133817,1713703838889,-500.0,0.00016712,2]
[323133818,1713703838898,-500.0,0.00016712,2]
[323133819,1713703838907,-500.0,0.00016712,2]
[323133820,1713703838916,-1290.82,0.00016712,2]
[323133821,1713703838925,-840.27,0.00016712,2]
[323133822,1713703838934,-500.0,0.00016712,2]
[323133823,1713703838943,-500.0,0.00016712,2]
[323133824,1713703838953,-690.15,0.00016712,2]
[323133825,1713703838962,-500.0,0.00016712,2]
[323133826,1713703838971,-500.0,0.00016712,2]
[323133827,1713703838981,-500.0,0.00016712,2]
[323133828,1713703838990,-500.0,0.00016712,2]
[323133829,1713703838999,-915.53,0.00016712,2]
[323133830,1713703839008,-500.0,0.00016712,2]
[323133831,1713703839019,-500.0,0.00016712,2]
[323133832,1713703839029,-959.32,0.00016712,2]
[323133833,1713703839039,-720.36,0.00016712,2]
[323133834,1713703839050,-500.0,0.00016712,2]
[323133835,1713703839060,-500.0,0.00016712,2]
[323133836,1713703839070,-500.0,0.00016712,2]
[323133837,1713703839079,-500.0,0.00016712,2]
[323133838,1713703839089,-1127.34,0.00016712,2]
[323133839,1713703839098,-500.0,0.00016712,2]
[323133840,1713703839108,-712.54,0.00016712,2]
[323133841,1713703839117,-728.93,0.00016712,2]
[323133842,1713703839126,-500.0,0.00016712,2]
[323133843,1713703839136,-500.0,0.00016712,2]
[323133844,1713703839145,-500.0,0.00016712,2]
[323133845,1713703839155,-500.0,0.00016712,2]
[323133846,1713703839166,-500.0,0.00016712,2]
[323133847,1713703839175,-837.27,0.00016712,2]
[323133848,1713703839184,-1200.69,0.00016712,2]
[323133849,1713703839194,-575.82,0.00016712,2]
[323133850,1713703839203,-500.0,0.00016712,2]
[323133851,1713703839212,-500.0,0.00016712,2]
[323133852,1713703839221,-500.0,0.00016712,2]
[323133853,1713703839230,-1491.61,0.00016712,2]
[323133854,1713703839241,-500.0,0.00016712,2]
[323133855,1713703839250,-500.0,0.00016712,2]
[323133856,1713703839259,-500.0,0.00016712,2]
[323133857,1713703839268,-500.0,0.00016712,2]
[323133858,1713703839277,-729.42,0.00016712,2]
[323133859,1713703839287,-500.0,0.00016712,2]
[323133860,1713703839298,-500.0,0.00016712,2]
[323133861,1713703839308,-500.0,0.00016712,2]
[323133862,1713703839317,-1071.35,0.00016712,2]
[323133863,1713703839326,-500.0,0.00016712,2]
[323133864,1713703839335,-500.0,0.00016712,2]
[323133865,1713703839344,-981.15,0.00016712,2]
[323133866,1713703839354,-500.0,0.00016712,2]
[323133867,1713703839363,-500.0,0.00016712,2]
[323133868,1713703839372,-500.0,0.00016712,2]
[323133869,1713703839381,-766.16,0.00016712,2]
[323133870,1713703839390,-500.0,0.00016712,2]
[323133871,1713703839399,-500.0,0.00016712,2]
[323133872,1713703839409,-500.0,0.00016712,2]
[323133873,1713703839418,-327.46501897,0.00016712,2]
[323133874,1713703839427,-500.0,0.00016712,2]
[323133875,1713703839436,-500.0,0.00016712,2]
[323133876,1713703839446,-1289.16,0.00016712,2]
[323133877,1713703839455,-500.0,0.00016712,2]
[323133878,1713703839464,-500.0,0.00016712,2]
[323133879,1713703839473,-756.39,0.00016712,2]
[323133880,1713703839482,-796.74,0.00016712,2]
[323133881,1713703839492,-500.0,0.00016712,2]
[323133882,1713703839501,-500.0,0.00016712,2]
[323133883,1713703839510,-500.0,0.00016712,2]
[323133884,1713703839519,-500.0,0.00016712,2]
[323133885,1713703839528,-500.0,0.00016712,2]
[323133886,1713703839537,-500.0,0.00016712,2]
[323133887,1713703839547,-500.0,0.00016712,2]
[323133888,1713703839557,-500.0,0.00016712,2]
[323133889,1713703839567,-903.36,0.00016712,2]
[323133890,1713703839576,-500.0,0.00016712,2]
[323133891,1713703839585,-500.88655787,0.00016712,2]
[323133892,1713703839595,-726.79,0.00016712,2]
[323133893,1713703839604,-498.81363837,0.00016712,2]
[323133894,1713703839613,-500.0,0.00016712,2]
[323133895,1713703839623,-500.0,0.00016712,2]
[323133896,1713703839632,-500.0,0.00016712,2]
[323133897,1713703839641,-867.78,0.00016712,2]
[323133898,1713703839650,-500.0,0.00016712,2]
[323133899,1713703839661,-334.65073575,0.00016712,2]
[323133900,1713703840163,-165.34926425,0.00016712,2]
[323133901,1713703840173,-500.0,0.00016712,2]
[323133902,1713703840182,-223.15963981,0.00016712,2]
[323133903,1713703840193,-278.40631321,0.00016712,2]
[323133904,1713703840202,-500.0,0.00016712,2]
[323133905,1713703840211,-959.32,0.00016712,2]
[323133906,1713703840220,-451.19609141,0.00016712,2]
[323133907,1713703840230,-500.0,0.00016712,2]
[323133908,1713703840240,-500.0,0.00016712,2]
[323133909,1713703840253,-500.89958876,0.00016712,2]
[323133910,1713703840262,-500.0,0.00016712,2]
[323133911,1713703840272,-500.0,0.00016712,2]
[323133912,1713703840281,-500.0,0.00016712,2]
[323133913,1713703840290,-500.0,0.00016712,2]
[323133914,1713703840300,-1030.26,0.00016712,2]
[323133915,1713703840309,-500.0,0.00016712,2]
[323133916,1713703840318,-1338.06,0.00016712,2]
[323133917,1713703840327,-500.0,0.00016712,2]
[323133918,1713703840337,-500.0,0.00016712,2]
[323133919,1713703840346,-500.0,0.00016712,2]
[323133920,1713703840355,-500.0,0.00016712,2]
[323133921,1713703840365,-500.0,0.00016712,2]
[323133922,1713703840374,-500.0,0.00016712,2]
[323133923,1713703840383,-500.0,0.00016712,2]
[323133924,1713703840392,-500.0,0.00016712,2]
[323133925,1713703840401,-500.0,0.00016712,2]
[323133926,1713703840410,-500.0,0.00016712,2]
[323133927,1713703840419,-645.21,0.00016712,2]
[323133928,1713703840429,-500.0,0.00016712,2]
[323133929,1713703840438,-500.0,0.00016712,2]
[323133930,1713703840447,-500.0,0.00016712,2]
[323133931,1713703840458,-500.0,0.00016712,2]
[323133932,1713703840467,-500.0,0.00016712,2]
[323133933,1713703840477,-691.32,0.00016712,2]
[323133934,1713703840486,-500.0,0.00016712,2]
[323133935,1713703840495,-705.19,0.00016712,2]
[323133936,1713703840505,-500.0,0.00016712,2]
[323133937,1713703840513,-500.0,0.00016712,2]
[323133938,1713703840524,-500.0,0.00016712,2]
[323133939,1713703840533,-150.0,0.00016712,2]
[323133940,1713703840543,-500.0,0.00016712,2]
[323133941,1713703840553,-500.0,0.00016712,2]
[323133942,1713703840564,-500.0,0.00016712,2]
[323133943,1713703840573,-643.31,0.00016712,2]
[323133944,1713703840582,-500.0,0.00016712,2]
[323133945,1713703840591,-500.0,0.00016712,2]
[323133946,1713703840600,-500.0,0.00016712,2]
[323133947,1713703840610,-500.0,0.00016712,2]
[323133948,1713703840619,-500.0,0.00016712,2]
[323133949,1713703840628,-500.0,0.00016712,2]
[323133950,1713703840638,-998.78,0.00016712,2]
[323133951,1713703840648,-1033.5,0.00016712,2]
[323133952,1713703840659,-715.09,0.00016712,2]
[323133953,1713703840668,-500.0,0.00016712,2]
[323133954,1713703840677,-1195.92,0.00016712,2]
[323133955,1713703840686,-500.0,0.00016712,2]
[323133956,1713703840694,-500.0,0.00016712,2]
[323133957,1713703840703,-500.0,0.00016712,2]
[323133958,1713703840712,-1091.89,0.00016712,2]
[323133959,1713703840721,-500.0,0.00016712,2]
[323133960,1713703840731,-500.0,0.00016712,2]
[323133961,1713703840740,-500.0,0.00016712,2]
[323133962,1713703840749,-924.95,0.00016712,2]
[323133963,1713703840758,-500.0,0.00016712,2]
[323133964,1713703840767,-500.0,0.00016712,2]
[323133965,1713703840777,-736.26,0.00016712,2]
[323133966,1713703840785,-631.94,0.00016712,2]
[323133967,1713703840797,-1041.24,0.00016712,2]
[323133968,1713703840805,-1020.3,0.00016712,2]
[323133969,1713703840814,-536.71,0.00016712,2]
[323133970,1713703840823,-500.0,0.00016712,2]
[323133971,1713703840833,-500.0,0.00016712,2]
[323133972,1713703840842,-501.70447069,0.00016712,2]
[323133973,1713703840852,-500.0,0.00016712,2]
[323133974,1713703840861,-501.07,0.00016712,2]
[323133975,1713703840870,-815.09,0.00016712,2]
[323133976,1713703840879,-500.0,0.00016712,2]
[323133977,1713703840888,-556.84,0.00016712,2]
[323133978,1713703840898,-500.0,0.00016712,2]
[323133979,1713703840907,-1393.98,0.00016712,2]
[323133980,1713703840917,-500.0,0.00016712,2]
[323133981,1713703840926,-957.57,0.00016712,2]
[323133982,1713703840936,-500.0,0.00016712,2]
[323133983,1713703840945,-904.56,0.00016712,2]
[323133984,1713703840954,-921.66,0.00016712,2]
[323133985,1713703840964,-548.62,0.00016712,2]
[323133986,1713703840973,-1599.79,0.00016712,2]
[323133987,1713703840982,-548.065022,0.00016712,2]
[323133988,1713703840992,-500.0,0.00016712,2]
[323133989,1713703841001,-500.0,0.00016712,2]
[323133990,1713703841011,-500.0,0.00016712,2]
[323133991,1713703841021,-500.0,0.00016712,2]
[323133992,1713703841031,-562.22,0.00016712,2]
[323133993,1713703841040,-651.300516,0.00016712,2]
[323133994,1713703841050,-651.300516,0.00016712,2]
[323133995,1713703841059,-500.0,0.00016712,2]
[323133996,1713703841070,-544.99,0.00016712,2]
[323133997,1713703841079,-701.7,0.00016712,2]
[323133998,1713703841088,-500.0,0.00016712,2]
[323133999,1713703841098,-651.300516,0.00016712,2]
[323134000,1713703841107,-651.300516,0.00016712,2]
[323134001,1713703841117,-500.0,0.00016712,2]
[323134002,1713703841126,-954.11,0.00016712,2]
[323134003,1713703841135,-1515.84,0.00016712,2]
[323134004,1713703841144,-500.0,0.00016712,2]
[323134005,1713703841160,-1847.98,0.00016712,2]
[323134006,1713703841176,-818.41,0.00016712,2]
[323134007,1713703841197,-500.0,0.00016712,2]
[323134008,1713703841221,-9640.44,0.00016712,2]
[323134009,1713703841236,-806.22,0.00016712,2]
[323134010,1713703841251,-202.8,0.00016712,2]
[323134011,1713703841266,-4313.86,0.00016712,2]
[323134012,1713703841278,-1307.97,0.00016712,2]
[323134013,1713703841291,-744.07,0.00016712,2]
[323134014,1713703841306,-841.31,0.00016712,2]
[323134015,1713703841321,-661.88,0.00016712,2]
[323134016,1713703841336,-552.88,0.00016712,2]
[323134017,1713703841348,-500.31,0.00016712,2]
[323134018,1713703841363,-500.0,0.00016712,2]
[323134019,1713703841376,-500.0,0.00016712,2]
[323134020,1713703841391,-2870.67,0.00016712,2]
[323134021,1713703841405,-500.0,0.00016712,2]
[323134022,1713703841419,-500.0,0.00016712,2]
[323134023,1713703841433,-500.0,0.00016712,2]
[323134024,1713703841448,-564.96,0.00016712,2]
[323134025,1713703841464,-1109.92,0.00016712,2]
[323134026,1713703841478,-500.0,0.00016712,2]
[323134027,1713703841489,-781.83,0.00016712,2]
[323134028,1713703841499,-500.0,0.00016712,2]
[323134029,1713703841514,-2136.36,0.00016712,2]
[323134030,1713703841527,-686.02,0.00016712,2]
[323134031,1713703841541,-2698.1,0.00016712,2]
[323134032,1713703841553,-673.9,0.00016712,2]
[323134033,1713703841564,-522.53,0.00016712,2]
[323134034,1713703841575,-500.0,0.00016712,2]
[323134035,1713703841588,-794.51,0.00016712,2]
[323134036,1713703841604,-500.0,0.00016712,2]
[323134037,1713703841615,-218.31034,0.00016712,2]
[323134038,1713703841629,-218.31034,0.00016712,2]
[323134039,1713703841642,-988.09,0.00016712,2]
[323134040,1713703841654,-687.74,0.00016712,2]
[323134041,1713703841667,-275.57,0.00016712,2]
[323134042,1713703841681,-834.62,0.00016712,2]
[323134043,1713703841693,-1366.95,0.00016712,2]
[323134044,1713703841705,-566.87,0.00016712,2]
[323134045,1713703841717,-218.31034,0.00016712,2]
[323134046,1713703841729,-218.31034,0.00016712,2]
[323134047,1713703841742,-1307.05,0.00016712,2]
[323134048,1713703841754,-633.04,0.00016712,2]
[323134049,1713703841767,-1063.71,0.00016712,2]
[323134050,1713703841780,-726.14,0.00016712,2]
[323134051,1713703841792,-550.31,0.00016712,2]
[323134052,1713703841805,-657.69,0.00016712,2]
[323134053,1713703841817,-627.06,0.00016712,2]
[323134054,1713703841830,-663.49,0.00016712,2]
[323134055,1713703841842,-3069.34,0.00016712,2]
[323134056,1713703841855,-1206.78,0.00016712,2]
[323134057,1713703841868,-1667.8,0.00016712,2]
[323134058,1713703841882,-1235.07,0.00016712,2]
[323134059,1713703841894,-785.6,0.00016712,2]
[323134060,1713703841906,-1777.79,0.00016712,2]
[323134061,1713703841919,-1164.03,0.00016712,2]
[323134062,1713703841932,-702.79,0.00016712,2]
[323134063,1713703841945,-793.56,0.00016712,2]
[323134064,1713703841958,-690.91,0.00016712,2]
[323134065,1713703841970,-500.0,0.00016712,2]
[323134066,1713703841983,-1011.83,0.00016712,2]
[323134067,1713703841996,-633.58,0.00016712,2]
[323134068,1713703842008,-500.0,0.00016712,2]
[323134069,1713703842022,-500.0,0.00016712,2]
[323134070,1713703842036,-934.07,0.00016712,2]
[323134071,1713703842049,-804.03,0.00016712,2]
[323134072,1713703842063,-1353.25,0.00016712,2]
[323134073,1713703842076,-865.97,0.00016712,2]
[323134074,1713703842087,-649.86,0.00016712,2]
[323134075,1713703842101,-500.0,0.00016712,2]
[323134076,1713703842114,-1369.4,0.00016712,2]
[323134077,1713703842127,-747.02,0.00016712,2]
[323134078,1713703842140,-500.0,0.00016712,2]
[323134079,1713703842153,-1369.91,0.00016712,2]
[323134080,1713703842165,-500.0,0.00016712,2]
[323134081,1713703842176,-1082.87,0.00016712,2]
[323134082,1713703842190,-1282.09,0.00016712,2]
[323134083,1713703842203,-500.0,0.00016712,2]
[323134084,1713703842215,-11591.68,0.00016712,2]
[323134085,1713703842228,-575.58,0.00016712,2]
[323134086,1713703842240,-500.0,0.00016712,2]
[323134087,1713703842252,-500.0,0.00016712,2]
[323134088,1713703842265,-502.33383086,0.00016712,2]
[323134089,1713703842277,-780.15,0.00016712,2]
[323134090,1713703842290,-1338.42,0.00016712,2]
[323134091,1713703842304,-500.0,0.00016712,2]
[323134092,1713703842316,-634.42,0.00016712,2]
[323134093,1713703842328,-505.14865776,0.00016712,2]
[323134094,1713703842340,-1407.68,0.00016712,2]
[323134095,1713703842352,-500.0,0.00016712,2]
[323134096,1713703842364,-897.72,0.00016712,2]
[323134097,1713703842376,-500.0,0.00016712,2]
[323134098,1713703842388,-881.82,0.00016712,2]
[323134099,1713703842400,-1814.96,0.00016712,2]
[323134100,1713703842412,-506.59,0.00016712,2]
[323134101,1713703842425,-500.0,0.00016712,2]
[323134102,1713703842436,-1994.37,0.00016712,2]
[323134103,1713703842449,-500.06,0.00016712,2]
[323134104,1713703842462,-837.83,0.00016712,2]
[323134105,1713703842475,-641.08,0.00016712,2]
[323134106,1713703842489,-774.16,0.00016712,2]
[323134107,1713703842502,-573.44,0.00016712,2]
[323134108,1713703842515,-679.73,0.00016712,2]
[323134109,1713703842528,-1410.25,0.00016712,2]
[323134110,1713703842538,-975.76,0.00016712,2]
[323134111,1713703842547,-599.79,0.00016712,2]
[323134112,1713703842557,-1592.34,0.00016712,2]
[323134113,1713703842566,-1165.17,0.00016712,2]
[323134114,1713703842575,-536.61,0.00016712,2]
[323134115,1713703842584,-500.0,0.00016712,2]